Cogmind - Beta 13 @@@ ROGUE MODE // 2024.04.03 @ 20:05:10 Player: KoT Result: Destroyed by G-47 Trooper with Particle Gun Performance ------------- Evolutions (2) 1000 Regions Visited (3) 600 Robots Destroyed (51) 255 Value Destroyed (1266) 1266 Prototype IDs (7) 140 Alien Tech Used (0) 0 Bonus (0) 0 TOTAL SCORE: 3261 Bonus ------- None Cogmind --------- Core Integrity 0/550 Matter 98/300 Energy 72/325 System Corruption 1% Temperature Cool (9) Movement Core (900) Ox17 Location -8/Materials Parts ------- > --- POWER (2) -------- Improved Ion Engine Light Nuclear Core > --- PROPULSION (3) --- (None) > --- UTILITY (3) ------ High-capacity Storage Unit > --- WEAPON (3) ------- (None) > --- INVENTORY (20) --- Light Treads Light Treads Large Storage Unit Huge Storage Unit Huge Storage Unit Signal Interpreter Hacking Suite Field Recycling Unit (0) Peak State ------------ > --- POWER ------------ Improved Ion Engine Improved Ion Engine > --- PROPULSION ------- Light Treads Light Treads Light Treads > --- UTILITY ---------- High-capacity Storage Unit Medium Matter Pod Light Armor Plating > --- WEAPON ----------- Assault Rifle Heavy Assault Rifle Improved Assault Rifle > --- INVENTORY -------- Improved Ion Engine Light Nuclear Core Light Treads Light Treads Large Storage Unit Huge Storage Unit Huge Storage Unit Signal Interpreter Hacking Suite Field Recycling Unit Assault Rifle Assault Rifle Assault Rifle Grenade Launcher Grenade Launcher Grenade Launcher [Rating: 18] Favorites ----------- Power Light Ion Engine Engine Light Ion Engine Propulsion Light Treads Treads Light Treads Utility Medium Matter Pod Device Sensor Array Storage Medium Matter Pod Protection Light Armor Plating Weapon Assault Rifle Energy Gun Medium Laser Ballistic Gun Assault Rifle Launcher Grenade Launcher Build | -11 -10 -9 -8 ------- Run | Yrd Mat Mat Mat Slots Evolved 4 | . . 2 2 Power 1 | . . 1 . Propulsion 1 | . . . 1 Utility 1 | . . 1 . Weapon 1 | . . . 1 Parts Attached 48 | 8 12 17 11 Power 10 | 2 1 5 2 Engine 9 | 2 1 5 1 Core 1 | . . . 1 Reactor . | . . . . Propulsion 11 | 2 2 6 1 Treads 11 | 2 2 6 1 Leg . | . . . . Wheel . | . . . . Hover . | . . . . Flight . | . . . . Utility 11 | 1 8 2 . Device 1 | . . 1 . Storage 9 | 1 8 . . Processor . | . . . . Hackware . | . . . . Protection 1 | . . 1 . Artifact . | . . . . Weapon 16 | 3 1 4 8 Energy Gun 1 | 1 . . . Energy Cannon . | . . . . Ballistic Gun 12 | 2 1 4 5 Ballistic Cannon . | . . . . Launcher 3 | . . . 3 Special Weapon . | . . . . Impact Weapon . | . . . . Slashing Weapon . | . . . . Piercing Weapon . | . . . . Special Melee Weapon . | . . . . Unidentified Prototypes 1 | . . . 1 Parts Lost 26 | . 4 6 16 Power 5 | . 1 2 2 Propulsion 6 | . 2 1 3 Utility 3 | . . 1 2 Weapon 12 | . 1 2 9 Highest Loss Streak 16 | . 2 2 16 To Critical Strikes . | . . . . Average Slot Usage (%) 86 | . 84 91 76 Engine 16 | . 13 21 11 Treads 18 | . 16 21 18 Storage 23 | . 25 22 18 Protection 2 | . . 4 5 Ballistic Gun 23 | . 27 20 19 Naked Turns . | . . . . Heaviest Build 68 | 14 48 64 68 Greatest Support 60 | 40 40 40 60 Greatest Overweight (x) 2 | . 2 1 1 Average Overweight (x) 1 | . 1 1 . Largest Inventory Capacity 25 | 8 25 20 20 Average Capacity 18 | 6 17 20 20 Most Carried 20 | 5 15 20 17 Average Carried 11 | 1 7 17 15 Final Capacity 20 | 8 20 20 20 Final Carried 18 | 1 15 18 8 Class Distribution -------------------- 72% | Mutant 22% | Scavenger-Mutant 4% | Scavenger-Tank Dominant Class ---------------- Mutant | -10/Materials Scavenger-Mutant | -9/Materials Scavenger-Tank | -8/Materials Resources | -11 -10 -9 -8 ----------- Run | Yrd Mat Mat Mat Matter Collected 1384 | 237 530 616 1 Remotely . | . . . . Salvage Created 1693 | . 560 1016 117 Parts 121 | . 41 72 8 Haulers Intercepted 2 | . 2 . . Recyclers Shooed 4 | . 1 3 . Parts Field Recycled . | . . . . Retrieved Matter . | . . . . Parts Self-Destructed . | . . . . Prevented . | . . . . Kills | -11 -10 -9 -8 ------- Run | Yrd Mat Mat Mat Combat Hostiles Destroyed 38 | . 12 23 3 Guns 36 | . 12 23 1 AOE 2 | . . . 2 Classes Destroyed 9 | . 7 1 1 Worker 1 | . 1 . . Builder 1 | . . . 1 Hauler 2 | . 2 . . Recycler 3 | . 1 2 . Operator 1 | . 1 . . Watcher 5 | . 2 3 . Swarmer 14 | . 6 8 . Grunt 16 | . 6 7 3 Sentry 8 | . . 8 . Best Kill Streak 8 | . 5 8 3 Combat Bots Only 5 | . 5 4 2 Max Kills in Single Turn 2 | . 1 2 1 Gunslinging 1 | . . 1 . Exploded 1 | . . . 1 Melee . | . . . . Uniques/NPCs Destroyed . | . . . . Combat | -11 -10 -9 -8 -------- Run | Yrd Mat Mat Mat Hostile Shots Fired 331 | . 91 156 84 Missed 85 | . 26 38 21 Damage Taken 4228 | . 784 1514 1930 Core 988 | . 162 268 558 Absorbed by Shields . | . . . . Core Remaining (%) 56 | 100 35 33 . Volleys Fired 214 | . 78 100 36 Largest 3 | . 2 2 3 Hottest 76 | . 40 43 76 Shots Fired 392 | . 140 189 63 Gun 380 | . 140 189 51 Cannon . | . . . . Launcher 12 | . . . 12 Special . | . . . . Kinetic 380 | . 140 189 51 Thermal . | . . . . Explosive 12 | . . . 12 Electromagnetic . | . . . . Robot Hit Streak 19 | . 10 8 19 Robot Miss Streak 6 | . 6 3 3 Penetration Max . | . . . . Secondary Targets 5 | . 2 3 . Max Gunslinging Chain 1 | . 1 1 . Shots Hit Robots 233 | . 73 115 45 Core Hits 105 | . 32 51 22 Critical Kills . | . . . . Critical Parts Destroyed 1 | . 1 . . Critical Strikes 1 | . 1 . . Destroy 1 | . 1 . . Melee Attacks . | . . . . Impact . | . . . . Slashing . | . . . . Piercing . | . . . . Sneak Attacks . | . . . . Combat Hostiles . | . . . . Follow-up Attacks . | . . . . Damage Inflicted 3314 | . 895 1376 1043 Guns 2744 | . 881 1372 491 Cannons . | . . . . Explosions 552 | . . . 552 Melee . | . . . . Ramming 18 | . 14 4 . Kinetic 2744 | . 881 1372 491 Thermal . | . . . . Explosive 552 | . . . 552 Electromagnetic . | . . . . Impact . | . . . . Slashing . | . . . . Piercing . | . . . . Highest Corruption 1 | . . . 1 Average Corruption 1 | . . . 1 Corruption Purged . | . . . . Corruption Blocked . | . . . . Overload Shots . | . . . . Overflow Damage . | . . . . Projectiles . | . . . . Explosions . | . . . . Melee . | . . . . Knockbacks . | . . . . Impact . | . . . . Kinetic . | . . . . Secondary . | . . . . Self-Inflicted Damage 13 | . . . 13 Shots 1 | . . . 1 Rammed 7 | . 6 1 . Targets Rammed 7 | . 6 1 . Kicked . | . . . . Crushed . | . . . . Highest Temperature 93 | . 34 93 27 Average Temperature 14 | . 10 14 9 Received Heat Transfer 1245 | . 198 579 468 Siege Activations . | . . . . Robots Corrupted . | . . . . Combat Hostiles . | . . . . Parts Fried . | . . . . Impact Corruptions . | . . . . Robots Melted . | . . . . Combat Hostiles . | . . . . Parts Melted . | . . . . Heat Transferred . | . . . . Parts Sabotaged . | . . . . Parts Stolen . | . . . . Parts Stripped . | . . . . Power Chain Reactions . | . . . . Alert | -11 -10 -9 -8 ------- Run | Yrd Mat Mat Mat Peak Influence 348 | . 290 348 168 Initial 146 | . . . 146 Average 107 | . 69 160 141 Maximum Alert Level 1 | . 1 1 . Low Security (%) 78 | 100 89 58 100 Level 1 21 | . 10 41 . Level 2 . | . . . . Level 3 . | . . . . Level 4 . | . . . . Level 5 . | . . . . High Security . | . . . . Max Security . | . . . . Squads Dispatched 5 | . 2 1 2 Investigation 1 | . 1 . . Extermination . | . . . . Reinforcement 4 | . 1 1 2 Assault . | . . . . Garrison . | . . . . Intercept . | . . . . Searches Triggered . | . . . . Construction Impeded 1 | . . . 1 Haulers Reinforced . | . . . . Active Scanning Responses . | . . . . Cargo Convoy Interrupts . | . . . . Stealth | -11 -10 -9 -8 --------- Run | Yrd Mat Mat Mat Distress Signals 3 | . . 3 . Communications Jammed . | . . . . Distress Signals . | . . . . Times Spotted 74 | . 36 32 6 Peak Tracking Total 6 | . 6 4 5 Tactical Retreats 10 | . 9 1 . Traps | -11 -10 -9 -8 ------- Run | Yrd Mat Mat Mat Traps Triggered . | . . . . Indirectly . | . . . . Trap Hack Attempts . | . . . . Triggered . | . . . . Disarmed . | . . . . Reprogrammed . | . . . . Reused . | . . . . Traps Extracted . | . . . . Installed . | . . . . Triggered . | . . . . Machines | -11 -10 -9 -8 ---------- Run | Yrd Mat Mat Mat Machines Disabled 2 | . 1 . 1 Max in Single Turn 1 | . 1 . 1 Machines Repaired . | . . . . Machines Dismantled . | . . . . Machines Sabotaged . | . . . . Overloaded Fab Kills . | . . . . Hacking | -11 -10 -9 -8 --------- Run | Yrd Mat Mat Mat Machines Accessed 8 | . 3 5 . Terminals 8 | . 3 5 . Fabricators . | . . . . Repair Stations . | . . . . Recycling Units . | . . . . Scanalyzers . | . . . . Garrison Access . | . . . . Total Hacks 19 | . 8 11 . Successful 8 | . 3 5 . Failed 11 | . 5 6 . Catastrophic 3 | . 1 2 . Database Lockouts . | . . . . Manual 5 | . 3 2 . Terminals 19 | . 8 11 . Fabricators . | . . . . Repair Stations . | . . . . Recycling Units . | . . . . Scanalyzers . | . . . . Garrison Access . | . . . . Terminal Hacks 8 | . 3 5 . Prototype ID Bank 3 | . 1 2 . Unreport Threat 1 | . 1 . . Locate Traps 2 | . 1 1 . Maintenance Status 1 | . . 1 . Patrol Status 1 | . . 1 . Fabricator Hacks . | . . . . Repair Station Hacks . | . . . . Recycling Unit Hacks . | . . . . Scanalyzer . | . . . . Garrison Access Hacks . | . . . . Unauthorized Hacks . | . . . . Terminals . | . . . . Fabricators . | . . . . Repair Stations . | . . . . Recycling Units . | . . . . Scanalyzers . | . . . . Garrison Access . | . . . . Data Cores Recovered . | . . . . Used . | . . . . Hacking Detections 8 | . 3 5 . Full Trace Events 1 | . 1 . . Feedback Events . | . . . . Feedback Blocked . | . . . . Robot Schematics Acquired . | . . . . Robots Built . | . . . . Authchips . | . . . . Time . | . . . . Total Robot Build Rating . | . . . . Part Schematics Acquired . | . . . . Parts Built . | . . . . Authchips . | . . . . Time . | . . . . Total Part Build Rating . | . . . . Parts Repaired . | . . . . Time . | . . . . Parts Recycled . | . . . . Recycled Matter . | . . . . Retrieved Matter . | . . . . Retrieved Components . | . . . . Parts Scanalyzed . | . . . . Part Schematics Acquired . | . . . . Parts Damaged . | . . . . Bothacking | -11 -10 -9 -8 ------------ Run | Yrd Mat Mat Mat Used RIF Installer . | . . . . Robots Hacked . | . . . . Non-combat . | . . . . Combat . | . . . . Robot Hacks Applied . | . . . . Relay Couplers Released . | . . . . Fabnet Peak Effective % . | . . . . Robots Rewired . | . . . . Allies Hacked . | . . . . Hacks Repelled . | . . . . Allies | -11 -10 -9 -8 -------- Run | Yrd Mat Mat Mat Total Allies . | . . . . Largest Group . | . . . . Highest-Rated Group . | . . . . Highest-Rated Ally . | . . . . Total Orders . | . . . . Ally Attacks . | . . . . Total Damage . | . . . . Kills . | . . . . Allies Corrupted . | . . . . Allies Melted . | . . . . Intel | -11 -10 -9 -8 ------- Run | Yrd Mat Mat Mat Robot Analysis Total . | . . . . Derelict Logs Recovered . | . . . . Drone Launches . | . . . . Drone Recoveries . | . . . . Exploration | -11 -10 -9 -8 ------------- Run | Yrd Mat Mat Mat Turns Passed 3781 | 68 2006 1446 261 Spaces Moved 1266 | 41 691 468 66 Core 13 | 13 . . . Treads 1253 | 28 691 468 66 Legs . | . . . . Wheels . | . . . . Hover . | . . . . Flight . | . . . . Fastest Speed 50 | 50 160 240 160 Average Speed 243 | 125 252 240 238 Slowest Speed 320 | 160 320 240 240 Overloaded Moves . | . . . . Propulsion Burnouts . | . . . . Robots Hopped . | . . . . Cave-ins Triggered 3 | . . . 3 Exploration Rate (%) 34 | 4 84 43 6 Regions Visited 3 Branch Regions . Pre-discovered Areas . | . . . . Known Exits Taken . | . . . . Unknown Exits Taken 3 | 1 1 1 . Scrap Searched . | . . . . Spaces Dug . | . . . . Terrain Destroyed 42 | . . . 42 Melee . | . . . . Projectile . | . . . . AOE 42 | . . . 42 Terrain Rammed . | . . . . Walls Destroyed . | . . . . Machines Disabled . | . . . . Actions | -11 -10 -9 -8 --------- Run | Yrd Mat Mat Mat Total 1593 | 57 810 613 113 Wait . | . . . . Move 1263 | 40 690 467 66 Hop . | . . . . Pick Up 49 | 8 21 20 . Fast Attach . | . . . . Attach 32 | 6 5 11 10 Detach . | . . . . Swap 16 | 2 7 6 1 Drop 12 | 1 3 8 . Fire 214 | . 78 100 36 Melee . | . . . . Ram . | . . . . Kick . | . . . . Crush 7 | . 6 1 . Escape Stasis . | . . . . Rewire . | . . . . Trap . | . . . . Miscellaneous . | . . . . Route ------- -11/Scrapyard -10/Materials (discovered 4 exits: *Mat x3 / [*Min]) -9/Materials -8/Materials History --------- Turn | Location | Event 7 | -11/Scrapyard | Discovered new exit (range 13) 69 | -11/Scrapyard | Entered Materials 282 | -10/Materials | Discovered new exit (range 13) 316 | -10/Materials | Build established: Mutant 388 | -10/Materials | Discovered new exit (range 9) 624 | -10/Materials | Discovered new exit (range 9) 813 | -10/Materials | Discovered new exit (range 16) 844 | -10/Materials | Core integrity fell below 50% 2075 | -10/Materials | Entered another Materials area 2075 | -9/Materials | Evolved 2 slots: Power x1, Utility x1 2908 | -9/Materials | Core integrity fell below 50% 2993 | -9/Materials | Build established: Scavenger-Mutant 3487 | -9/Materials | Discovered new exit (range 6) 3521 | -9/Materials | Entered another Materials area 3521 | -8/Materials | Evolved 2 slots: Propulsion x1, Weapon x1 3757 | -8/Materials | Crushed by falling debris 3757 | -8/Materials | Core integrity fell below 50% 3774 | -8/Materials | Core integrity fell below 20% 3778 | -8/Materials | Crushed by falling debris 3780 | -8/Materials | Crushed by falling debris 3782 | -8/Materials | Destroyed by G-47 Trooper with Particle Gun Last Messages --------------- 03771_ U-05 Engineer lays Concrete. 03772_ U-05 Engineer builds a Wall. 03772_ K-01 Serf collects debris. 03773_ The unstable cave ceiling collapses. 03773_ U-05 Engineer lays Concrete. 03774_ U-05 Engineer builds a Wall. 03776_ U-05 Engineer lays Concrete. 03776_ K-01 Serf collects debris. 03777_ U-05 Engineer builds a Wall. 03778_ The unstable cave ceiling collapses. 03778_ Crushed by falling debris. 03778_ U-05 Engineer builds a Wall. 03779_ Assault Rifle destroyed. 03779_ K-01 Serf collects debris. 03780_ The unstable cave ceiling collapses. 03780_ Crushed by falling debris. 03780_ Med. Matter Pod destroyed. 03780_ System corrupted by crushing effect (+1). 03780_ Critical hit (Burn: +37). 03782_ U-05 Engineer builds a Wall. Map ----- +----------------------------------------------------+ | | | | | ?????????????????????????????????????????????????? | | ?????????????????????????????????????????????????? | | ?????????????????????????????????????????????????? | | ?????????????????????????????????????????????????? | | ?????????????????????????????????????????????????? | | ?????????????????????????????????????????????????? | | ?????????????????????????????????????????????????? | | ?????????????????????????????????????????????????? | | ?????????????????????????????????????????????????? | | ????????????????#########????????????????????????? | | ????????????????# #??????#####?????????????? | | ????????????????# ####### #?????????????? | | ????????????????# # #?????????????? | | ????????????????##### # #?????????????? | | ????????????????????# # #?????????????? | | ????????????????????# # """""" ##?????????????? | | ????????????????????# + """"""" #??????????????? | | ????????????????????# # """"""" #??????????????? | | ????????????????????# % # """"""" #??????????????? | | ????????????????????# # "%""""" #??????????????? | | ????????????????????#% ###"#######??????????????? | | ????????????????????# % ## #?????????????????????? | | ????????????""" # % #k###????????????????????? | | ????????????""" + % u@!!#????????????????????? | | ????????????""" "" # Hgg !!#????????????????????? | | ????????????????????# ==#????????????????????? | | ????????????????????# ==#????????????????????? | | ????????????????????# * //#????????????????????? | | ??????????????????? % //#????????????????????? | | ?????????????????? # #####????????????????????? | | ?????????????????# % # ??????????????????????? | | ?????????????????# # # ??????????????????????? | | ?????????????????# #u %# ??????????????????????? | | ?????????????????# ## # ??????????????????????? | | ?????????????????## u ##?????????????????????? | | ?????????????????? %!##??????????????????????? | | ?????????????????? ????????????????????????? | | ???????????????????? ????????????????????????? | | ?????????????????????? ????????????????????????? | | ?????????????????????????????????????????????????? | | ?????????????????????????????????????????????????? | | ?????????????????????????????????????????????????? | | ?????????????????????????????????????????????????? | | ?????????????????????????????????????????????????? | | ?????????????????????????????????????????????????? | | ?????????????????????????????????????????????????? | | ?????????????????????????????????????????????????? | | ?????????????????????????????????????????????????? | +----------------------------------------------------+ Best States ------------- Heat Dissipation 31 Energy Generation 19 Energy Capacity 430 Matter Stores 400 Matter Capacity 400 Sight Range 16 Robot Scan Range 14 Terrain Scan Density 10 Armor Coverage 150 Evasion (%) 50 Recoil Reduction 3 Item Schematics ----------------- None Robot Schematics ------------------ None Fabricated ------------ Nothing Alien Tech Used ----------------- None Achievements -------------- None Challenges ------------ None Game ------ Seed InsulationPhaseFlightbrick Manual? 0 Play Time 00:24:47 Cumulative 15.1 hours Start 2024.04.03 @ 19:40:21 End 2024.04.03 @ 20:05:10 Sessions 1 Manual Loads 0 Difficulty Rogue Special Mode None Game No. 27 Rogue 27 Adventurer 0 Explorer 0 Win Type - Total 0 Types 0/0/0/0/0/0/0/0/0 Lore% 18 Gallery% 16 Achievement% 15 Wizard Run 0 Options --------- Layout 1 ASCII 0 Keyboard 0 Movement Arrows Keybinds 0 Fullscreen 1 Font 24/Smallcaps Map View 50x35 Zoom Use 0% Tactical HUD 1 Map Filters NONE Filters NONE Steam 0 RUN: e6a0ede4-e849-48e4-908d-b2d9604d3dd6